Cogmind - Beta 16 @@@ ROGUE MODE // 2025.12.27 @ 12:03:09 Player: kiul Result: Destroyed by L-31 Rogue with Katana Performance ------------- Evolutions (1) 500 Regions Visited (4) 800 Robots Destroyed (35) 175 Value Destroyed (910) 910 Prototype IDs (2) 40 Alien Tech Used (0) 0 Bonus (200) 200 TOTAL SCORE: 2625 Bonus ------- Entered Garrisons 200 Cogmind --------- Core Integrity 0/400 Matter 97/300 Energy 100/100 System Corruption 3% Temperature Cool (0) Movement Core (350) Ox6 Location -9/Garrison Parts ------- > --- POWER (1) -------- (None) > --- PROPULSION (2) --- (None) > --- UTILITY (4) ------ Large Storage Unit > --- WEAPON (2) ------- (None) > --- INVENTORY (15) --- Small Storage Unit Medium Storage Unit Relay Coupler [Grunt] (37) Relay Coupler [Hunter] (19) Peak State ------------ > --- POWER ------------ (None) > --- PROPULSION ------- Light Treads Aluminum Leg > --- UTILITY ---------- Improved Heat Sink Large Storage Unit > --- WEAPON ----------- Advanced Beam Cannon Rocket Launcher > --- INVENTORY -------- Ion Engine Small Storage Unit Medium Storage Unit Improved EM Shotgun Advanced Beam Cannon Rocket Launcher [Rating: 12] Favorites ----------- Power Ion Engine Engine Ion Engine Propulsion Light Treads Treads Light Treads Leg Aluminum Leg Wheel Compact Wheel Utility Large Storage Unit Device Improved Heat Sink Storage Large Storage Unit Weapon Advanced Beam Cannon Energy Gun Small Laser Energy Cannon Advanced Beam Cannon Ballistic Gun Assault Rifle Launcher Rocket Launcher Build | -11 -10 -9 -9 -9 ------- Run | Yrd Mat Mat Sto Gar Slots Evolved 2 | . . 2 . . Power . | . . . . . Propulsion . | . . . . . Utility 2 | . . 2 . . Weapon . | . . . . . Parts Attached 24 | 7 7 7 . 3 Power 2 | 1 . . . 1 Engine 2 | 1 . . . 1 Core . | . . . . . Reactor . | . . . . . Propulsion 8 | 3 3 2 . . Treads 2 | 1 . 1 . . Leg 4 | . 3 1 . . Wheel 2 | 2 . . . . Hover . | . . . . . Flight . | . . . . . Utility 4 | 1 2 1 . . Device 1 | . 1 . . . Storage 3 | 1 1 1 . . Processor . | . . . . . Hackware . | . . . . . Protection . | . . . . . Artifact . | . . . . . Weapon 10 | 2 2 4 . 2 Energy Gun 3 | . 2 . . 1 Energy Cannon 2 | . . 1 . 1 Ballistic Gun 2 | 2 . . . . Ballistic Cannon . | . . . . . Launcher 3 | . . 3 . . Special Weapon . | . . . . . Impact Weapon . | . . . . . Slashing Weapon . | . . . . . Piercing Weapon . | . . . . . Special Melee Weapon . | . . . . . Unidentified Prototypes 2 | . . 1 . 1 Parts Lost 19 | . 4 9 . 6 Power 2 | . . 1 . 1 Propulsion 7 | . 2 3 . 2 Utility 1 | . . 1 . . Weapon 9 | . 2 4 . 3 Highest Loss Streak 6 | . 3 6 . 4 To Critical Strikes . | . . . . . Average Backups 4 | 1 3 5 5 4 Power . | . 1 1 1 . Propulsion . | . 1 1 . . Utility 2 | . . 1 2 2 Weapon 1 | . . 1 2 1 Tool/Special . | . . . . . Unused Backups 2 | . . . . 2 Power . | . . . . . Propulsion . | . . . . . Utility 2 | . . . . 2 Weapon . | . . . . . Tool/Special . | . . . . . Average Slot Usage (%) 56 | . 82 59 55 44 Engine 5 | . 14 3 . 4 Treads 7 | . . 6 22 9 Leg 4 | . 8 11 . . Wheel 2 | . 13 . . . Device 2 | . 4 7 . . Storage 11 | . 14 11 11 11 Energy Gun 5 | . 9 7 . 3 Energy Cannon 7 | . . 6 11 10 Ballistic Gun 3 | . 17 . . . Launcher 4 | . . 6 11 4 Peak Build Rating 12 | 6 8 12 8 9 Average Rating 7 | 4 6 8 8 7 On Entrance 6 | . 6 8 8 8 Avg Prop Armor Cover (%) 3 | . 3 . . . Naked Turns . | . . . . . Heaviest Build 33 | 13 18 29 28 33 Greatest Support 40 | 32 32 40 40 40 Greatest Overweight (x) 8 | . 1 2 . 8 Average Overweight (x) 1 | . . . . 2 Largest Inventory Capacity 15 | 8 10 15 15 15 Average Capacity 13 | 6 8 14 15 15 Most Carried 7 | 3 5 7 5 6 Average Carried 4 | 1 3 5 5 4 Final Capacity 15 | 8 10 15 15 15 Final Carried 5 | 3 5 5 5 4 Class Distribution -------------------- 93% | Mutant 6% | Scavenger-Mutant Dominant Class ---------------- Mutant | -10/Materials Mutant | -9/Materials Mutant | -9/Storage Mutant | -9/Garrison Resources | -11 -10 -9 -9 -9 ----------- Run | Yrd Mat Mat Sto Gar Matter Collected 561 | 160 207 118 . 76 Remotely . | . . . . . Salvage Created 715 | . 207 417 . 91 Parts 57 | . 14 39 . 4 Haulers Intercepted 2 | . . 2 . . Recyclers Shooed . | . . . . . Parts Field Recycled . | . . . . . Retrieved Matter . | . . . . . Parts Self-Destructed . | . . . . . Prevented . | . . . . . Parts Restored . | . . . . . Kills | -11 -10 -9 -9 -9 ------- Run | Yrd Mat Mat Sto Gar Combat Hostiles Destroyed 21 | . 5 12 . 4 Guns 7 | . 5 1 . 1 Cannons 3 | . . . . 3 AOE 11 | . . 11 . . Classes Destroyed 13 | . 1 11 . 1 Builder 5 | . . 5 . . Tunneler 1 | . . 1 . . Hauler 2 | . . 2 . . Recycler 1 | . . 1 . . Mechanic 1 | . . 1 . . Operator 1 | . . 1 . . Watcher 3 | . . 3 . . Swarmer 3 | . . 3 . . Grunt 10 | . 5 5 . . Brawler 1 | . . 1 . . Duelist 1 | . . 1 . . Sentry 3 | . . 2 . 1 Programmer 3 | . . . . 3 Best Kill Streak 9 | . 4 9 . 3 Combat Bots Only 4 | . 4 4 . 3 Max Kills in Single Turn 4 | . 1 4 . 1 Gunslinging . | . . . . . Exploded 3 | . . 3 . . Melee . | . . . . . Uniques/NPCs Destroyed . | . . . . . Combat | -11 -10 -9 -9 -9 -------- Run | Yrd Mat Mat Sto Gar Hostile Shots Fired 185 | . 50 90 . 45 Missed 50 | . 10 27 . 13 Hits 135 | . 40 63 . 32 Melee 9 | . . 7 . 2 Projectile 126 | . 40 56 . 30 AOE 1 | . . 1 . . Critical Strikes 4 | . 1 1 . 2 Damage Taken 2143 | . 519 1081 . 543 Core 516 | . 96 220 . 200 Absorbed by Shields . | . . . . . Core Remaining (%) 80 | 100 61 . . . Volleys Fired 77 | . 23 38 . 16 Largest 2 | . 2 2 . 2 Hottest 113 | . 40 101 . 113 Shots Fired 127 | . 40 66 . 21 Gun 64 | . 40 21 . 3 Cannon 34 | . . 21 . 13 Launcher 29 | . . 24 . 5 Special . | . . . . . Kinetic 37 | . 37 . . . Thermal 58 | . 3 42 . 13 Explosive 29 | . . 24 . 5 Electromagnetic 3 | . . . . 3 Robot Hit Streak 15 | . 15 7 . 6 Robot Miss Streak 3 | . 2 3 . 2 Penetration Max . | . . . . . Secondary Targets 1 | . 1 . . . Max Gunslinging Chain 1 | . 1 . . . Shots Hit Robots 90 | . 33 45 . 12 Core Hits 69 | . 12 45 . 12 Critical Kills . | . . . . . Critical Parts Destroyed . | . . . . . Critical Strikes . | . . . . . Melee Attacks . | . . . . . Impact . | . . . . . Slashing . | . . . . . Piercing . | . . . . . Sneak Attacks . | . . . . . Combat Hostiles . | . . . . . Follow-up Attacks . | . . . . . Damage Inflicted 3114 | . 334 2298 . 482 Guns 500 | . 334 120 . 46 Cannons 480 | . . 307 . 173 Explosions 2134 | . . 1871 . 263 Melee . | . . . . . Ramming . | . . . . . Kinetic 312 | . 312 . . . Thermal 622 | . 22 427 . 173 Explosive 2134 | . . 1871 . 263 Electromagnetic 46 | . . . . 46 Impact . | . . . . . Slashing . | . . . . . Piercing . | . . . . . Highest Corruption 3 | . 2 . . 3 Average Corruption 2 | . 2 . . 2 Corruption Purged . | . . . . . Corruption Blocked . | . . . . . Effects 10 | . 1 . . 9 Message Errors 3 | . . . . 3 Matter Fused 1 | . . . . 1 Heat Flow Errors 3 | . 1 . . 2 Data Loss (minor) 2 | . . . . 2 Weapon Failures 1 | . . . . 1 Overload Shots . | . . . . . Overflow Damage 72 | . . 72 . . Projectiles . | . . . . . Explosions 72 | . . 72 . . Melee . | . . . . . Knockbacks . | . . . . . Impact . | . . . . . Kinetic . | . . . . . Secondary . | . . . . . Self-Inflicted Damage 230 | . . 171 . 59 Shots 9 | . . 7 . 2 Rammed . | . . . . . Targets Rammed . | . . . . . Kicked . | . . . . . Crushed . | . . . . . Highest Temperature 267 | . 158 122 . 267 Average Temperature 74 | . 40 63 . 118 Received Heat Transfer 633 | . 306 258 . 69 Siege Activations . | . . . . . Martial Activations . | . . . . . Shielding Activations . | . . . . . Robots Disrupted . | . . . . . Combat Hostiles . | . . . . . Robots Corrupted . | . . . . . Combat Hostiles . | . . . . . Parts Fried . | . . . . . Impact Corruptions . | . . . . . Robots Melted . | . . . . . Combat Hostiles . | . . . . . Parts Melted 1 | . . 1 . . Heat Transferred 1139 | . 50 830 . 259 Parts Sabotaged . | . . . . . Parts Stolen . | . . . . . Parts Stripped . | . . . . . Power Chain Reactions . | . . . . . Alert | -11 -10 -9 -9 -9 ------- Run | Yrd Mat Mat Sto Gar Maximum Alert Level 1 | . . 1 . . Low Security (%) 90 | 100 100 67 100 100 Level 1 9 | . . 32 . . Level 2 . | . . . . . Level 3 . | . . . . . Level 4 . | . . . . . Level 5 . | . . . . . High Security . | . . . . . Max Security . | . . . . . Peak Influence 306 | . 70 306 124 171 Initial 124 | . . . 124 76 Average 101 | . 21 121 120 127 Influence Increases 765 | . 120 496 4 145 Destroy 0b10 Robot/C 420 | . 100 240 . 80 Destroy 0b10 Robot/NC 70 | . . 70 . . Destroy Leader 100 | . 20 80 . . Successful Hack 18 | . . . 4 14 Disable Machine 15 | . . 15 . . Destroy Structure 142 | . . 91 . 51 Influence Decreases 604 | . 120 200 182 102 Entered New Map 214 | . . . 172 42 Time Decay 220 | . 80 130 10 . Lost Part 170 | . 40 70 . 60 Squads Dispatched 3 | . 1 2 . . Investigation 1 | . 1 . . . Extermination . | . . . . . Reinforcement 2 | . . 2 . . Assault . | . . . . . Garrison . | . . . . . Intercept . | . . . . . Searches Triggered . | . . . . . Construction Impeded 1 | . . 1 . . Haulers Reinforced . | . . . . . Active Scanning Responses . | . . . . . Cargo Convoy Interrupts . | . . . . . Stealth | -11 -10 -9 -9 -9 --------- Run | Yrd Mat Mat Sto Gar Distress Signals 1 | . . 1 . . Communications Jammed . | . . . . . Distress Signals . | . . . . . Times Spotted 31 | . 6 18 . 7 Peak Tracking Total 5 | . 5 4 . 3 Tactical Retreats . | . . . . . Traps | -11 -10 -9 -9 -9 ------- Run | Yrd Mat Mat Sto Gar Traps Triggered 2 | . 2 . . . Indirectly . | . . . . . Trap Hack Attempts . | . . . . . Triggered . | . . . . . Disarmed . | . . . . . Reprogrammed . | . . . . . Reused . | . . . . . Traps Extracted . | . . . . . Installed . | . . . . . Triggered . | . . . . . Machines | -11 -10 -9 -9 -9 ---------- Run | Yrd Mat Mat Sto Gar Machines Disabled 1 | . . 1 . . Max in Single Turn 1 | . . 1 . . Machines Repaired . | . . . . . Machines Dismantled . | . . . . . Machines Sabotaged . | . . . . . Overloaded Fab Kills . | . . . . . Hacking | -11 -10 -9 -9 -9 --------- Run | Yrd Mat Mat Sto Gar Machines Accessed 3 | . . . 1 2 Terminals 2 | . . . . 2 Fabricators . | . . . . . Repair Stations . | . . . . . Recycling Units . | . . . . . Scanalyzers . | . . . . . Garrison Access 1 | . . . 1 . Total Hacks 5 | . . . 2 3 Successful 3 | . . . 1 2 Failed 2 | . . . 1 1 Catastrophic . | . . . . . Database Lockouts . | . . . . . Manual . | . . . . . Terminals 3 | . . . . 3 Fabricators . | . . . . . Repair Stations . | . . . . . Recycling Units . | . . . . . Scanalyzers . | . . . . . Garrison Access 2 | . . . 2 . Terminal Hacks 2 | . . . . 2 Emergency Access Points 1 | . . . . 1 Garrison Registry 1 | . . . . 1 Fabricator Hacks . | . . . . . Repair Station Hacks . | . . . . . Recycling Unit Hacks . | . . . . . Scanalyzer . | . . . . . Garrison Access Hacks 1 | . . . 1 . Unlock Access 1 | . . . 1 . Unauthorized Hacks . | . . . . . Terminals . | . . . . . Fabricators . | . . . . . Repair Stations . | . . . . . Recycling Units . | . . . . . Scanalyzers . | . . . . . Garrison Access . | . . . . . Data Cores Recovered . | . . . . . Used . | . . . . . Hacking Detections 3 | . . . 1 2 Full Trace Events . | . . . . . Feedback Events . | . . . . . Feedback Blocked . | . . . . . Robot Schematics Acquired . | . . . . . Robots Built . | . . . . . Authchips . | . . . . . Time . | . . . . . Total Robot Build Rating . | . . . . . Part Schematics Acquired . | . . . . . Parts Built . | . . . . . Authchips . | . . . . . Time . | . . . . . Total Part Build Rating . | . . . . . Part Studies Acquired . | . . . . . Parts Repaired . | . . . . . Time . | . . . . . Parts Recycled . | . . . . . Recycled Matter . | . . . . . Retrieved Matter . | . . . . . Retrieved Components . | . . . . . Parts Scanalyzed . | . . . . . Part Schematics Acquired . | . . . . . Parts Damaged . | . . . . . Bothacking | -11 -10 -9 -9 -9 ------------ Run | Yrd Mat Mat Sto Gar Used RIF Installer . | . . . . . Robots Hacked . | . . . . . Non-combat . | . . . . . Combat . | . . . . . Robot Hacks Applied . | . . . . . Relay Couplers Released . | . . . . . Fabnet Peak Effective % . | . . . . . Robots Rewired . | . . . . . Allies Hacked . | . . . . . Hacks Repelled . | . . . . . Allies | -11 -10 -9 -9 -9 -------- Run | Yrd Mat Mat Sto Gar Total Allies . | . . . . . Largest Group . | . . . . . Highest-Rated Group . | . . . . . Highest-Rated Ally . | . . . . . Total Orders . | . . . . . Ally Attacks . | . . . . . Total Damage . | . . . . . Kills . | . . . . . Allies Corrupted . | . . . . . Allies Melted . | . . . . . Intel | -11 -10 -9 -9 -9 ------- Run | Yrd Mat Mat Sto Gar Active Infowar (turns) . | . . . . . Robot Analysis Total . | . . . . . Derelict Logs Recovered . | . . . . . Drone Launches . | . . . . . Drone Recoveries . | . . . . . Exploration | -11 -10 -9 -9 -9 ------------- Run | Yrd Mat Mat Sto Gar Turns Passed 1334 | 67 224 377 31 635 Spaces Moved 568 | 65 116 131 20 236 Core 101 | 20 . . . 81 Treads 233 | . . 58 20 155 Legs 120 | . 47 73 . . Wheels 114 | 45 69 . . . Hover . | . . . . . Flight . | . . . . . Fastest Speed 50 | 50 100 120 160 160 Average Speed 192 | 84 134 197 160 250 Slowest Speed 450 | 100 190 260 160 450 Overloaded Moves . | . . . . . Propulsion Burnouts . | . . . . . Robots Hopped . | . . . . . Potential Cave-ins . | . . . . . Cave-ins Triggered . | . . . . . Exploration Rate (%) 17 | 5 30 21 7 25 Regions Visited 4 Branch Regions 1 Pre-discovered Areas . | . . . . . Known Exits Taken 1 | . . . 1 . Unknown Exits Taken 3 | 1 1 1 . . Scrap Searched . | . . . . . Spaces Dug . | . . . . . Terrain Destroyed 185 | . . 147 . 38 Melee . | . . . . . Projectile 1 | . . 1 . . AOE 184 | . . 146 . 38 Terrain Rammed . | . . . . . Walls Destroyed . | . . . . . Machines Disabled . | . . . . . Actions | -11 -10 -9 -9 -9 --------- Run | Yrd Mat Mat Sto Gar Total 678 | 74 146 182 19 257 Wait . | . . . . . Move 564 | 64 115 130 19 236 Hop . | . . . . . Pick Up 9 | 2 1 4 . 2 Fast Attach 14 | 7 3 4 . . Attach 9 | . 1 5 . 3 Detach 2 | 1 . 1 . . Swap 3 | . 3 . . . Drop . | . . . . . Fire 77 | . 23 38 . 16 Melee . | . . . . . Ram . | . . . . . Kick . | . . . . . Crush . | . . . . . Escape Stasis . | . . . . . Rewire . | . . . . . Trap . | . . . . . Miscellaneous . | . . . . . Route ------- -11/Scrapyard -10/Materials -9/Materials -9/Storage -9/Garrison (discovered 3 exits: [Rec x3]) History --------- Turn | Location | Event 23 | -11/Scrapyard | Discovered new exit (range 16) 68 | -11/Scrapyard | Entered Materials 196 | -10/Materials | Discovered new exit (range 14) 237 | -10/Materials | Lost 3 parts (1n2w) 292 | -10/Materials | Entered another Materials area 292 | -9/Materials | Evolved 2 slots: Utility x2 482 | -9/Materials | Lost 6 parts (1p2n3w) 630 | -9/Materials | Core integrity fell below 50% 661 | -9/Materials | Discovered new exit (range 6) 669 | -9/Materials | Entered Storage 680 | -9/Storage | Build established: Mutant 698 | -9/Storage | Identified exit to Garrison 700 | -9/Storage | Entered Garrison 790 | -9/Garrison | Triggered checkpoint 929 | -9/Garrison | Discovered new exit (range 44) 929 | -9/Garrison | Discovered new exit (range 71) 929 | -9/Garrison | Discovered new exit (range 61) 1006 | -9/Garrison | Lost 4 parts (1p2n1w) 1300 | -9/Garrison | Triggered checkpoint 1301 | -9/Garrison | Core integrity fell below 20% 1335 | -9/Garrison | Destroyed by L-31 Rogue with Katana Last Messages --------------- 01038_ Acquired Relay Coupler [Grunt]. 01043_ Acquired Relay Coupler [Hunter]. 01067_ The unstable cave ceiling collapses. 01089_ System corrupted: Matter fused (-9). 01113_ System corrupted: Heat flow error (+167). 01121_ The unstable cave ceiling collapses. 01132_ Identified Imp. EM Shotgun. 01162_ TV#WJK4TGXIE4R8Y&VRG9 01183_ System corrupted: Heat flow error (+135). 01297_ System corrupted: Component data lost. 01300_ Beams of light sweep through the air. An alarm sounds. 01303_ Adv. Beam Cannon destroyed. 01308_ Y-45 Defender destroyed. 01326_ C-30 ARC bursts open, deploying its payload. 01326_ L-31 Rogue unfolds itself. 01326_ G-34 Mercenary unfolds itself. 01327_ Acquired 60 matter. 01332_ System corrupted: Imp. EM Shotgun failed to cycle. 01332_ Adv. Beam Cannon severed. 01335_ Imp. EM Shotgun destroyed. Map ----- +----------------------------------------------------+ | #""#????# #?# " "#?????# #???????# | | "#????# #?## ##"""""#?????# #???????# | | "#????# #??# ##"#####?????# #???????# | | "#????# #??# ##"#?????????# #?????### | | "#????# #??# ####?????????# #??#### " | | "#????# #??# #????????????# #??# + " | | +# #"""#????# #??# #????????????# #??# ## " | | ##########????# #??# #????????????# #??# #### | | #?????????????# #??# #????????????# ####+#### | | #?????????????# #??# #????????????# ^ | | /############### #### #######??????# | | + #??????# ^ | | + #??????# ####### | | +#### ######### ######### #??????# #?????# | | #### ###?????# #???????# #???#### ####### | | ## " #"#?????# ######??# #???# + + + | | + " "#?????# + #??# #???# ## ####### | | ### " "#?????# #### #??# #####+## #?????# | | ??# " "#?????# #??# #??# ## ## #?????# | | ??# " #"#?????# ^^####+####++##""""## #?????# | | ??### ###?????# ^^^ ####### | | ????##+######### ^ | | ?????# + ^ | | ?????###################### ## ## ######### | | ????????????????????????### ## ## ###?????? | | ????????????????????????#@[ " #?????? | | ????????????????????????#!l " #?????? | | ??????????????????????### " ####### | | ??????????????????????# + g " + | | #######???????????????# ### ## ## ######## | | ##"T"#??????????###### ###%g ## ## ########+ | | "#??????????# + ^ ^^^ | | ######??????????# + ^ ^ | | ################# ####### ######## | | #????#T ##""""######??????# | | ################# #????## ## #???????????# | | #???????????????# ####### ##+####???????????# | | #???????????????# " + #??????????????# | | #???????????????# ####### ####??????????????# | | ##???????????????# #?????# #?????????????????# | | ?????????????????# #?????# #?????????????????# | | ##################++####### #?????????????????# | | ^^ #?????????????????# | | ^^ #?????????????????# | | ^^ #?????????????????# | | ################## #######+###?????????????????# | | ?????????????????# ###???# #???????????????????# | | ?????????????????# ##### #???????????????????# | | ?????????????????# + #???????????????????# | | ?????????????????# #######???????????????????# | +----------------------------------------------------+ Best States ------------- Heat Dissipation 42 Energy Generation 10 Energy Capacity 250 Matter Stores 286 Matter Capacity 300 Sight Range 16 Terrain Scan Density 10 Evasion (%) 55 Recoil Reduction 2 Item Schematics ----------------- None Robot Schematics ------------------ None Fabricated ------------ Nothing Repaired ---------- Nothing Studied --------- None Alien Tech Used ----------------- None Achievements -------------- None Challenges ------------ None Game ------ Seed SpliceActiveGun Manual? 0 Play Time 00:11:45 Cumulative 52.5 hours Start 2025.12.27 @ 11:54:28 End 2025.12.27 @ 12:03:09 Sessions 1 Manual Loads 0 Difficulty Rogue Special Mode None Game No. 63 Rogue 63 Adventurer 0 Explorer 0 Win Type - Total 0 Types 0/0/0/0/0/0/0/0/0/0 Lore% 12 Gallery% 35 Achievement% 24 Wizard Run 0 Options --------- Layout 0 ASCII 0 Keyboard 1 Movement Arrows Keybinds 0 Fullscreen 1 Font 24/Smallcaps Map View 76x50 Zoom Use 0% Tactical HUD 1 Map Filters NONE Filters NONE Steam 1 RUN: 256257dc-2bbf-4a81-8c53-89e588fb0857